[Event "WYCC 2018 O16"]
[Site "Halkidiki"]
[Date "2018.10.29"]
[Round "10"]
[White "Fernandez Garcia, Gumersindo"]
[Black "Faerber, David"]
[Result "0-1"]
[ECO "A06"]
[WhiteElo "2065"]
[BlackElo "2279"]
[Annotator "NA"]
[PlyCount "96"]
[EventDate "2018.10.20"]
[EventType "swiss"]
[EventCountry "GRE"]
[SourceTitle "playchess.com"]
[Source "ChessBase"]
[SourceQuality "1"]
[TimeControl "40/5400+30:1800+30"]

1. Nf3 {[%emt 0:00:00]} d5 {[%emt 0:02:35]} 2. e3 {[%emt 0:00:00]} Nf6 {[%emt 0:01:10]} 3. c4 {[%emt 0:00:30]} c6 {[%emt 0:00:30]} 4. Nc3 {[%emt 0:00:31]} g6 {[%emt 0:03:27]} 5. d4 {[%emt 0:06:42]} Bg7 {[%emt 0:00:29]} 6. Be2 {[%emt 0:06:12]} O-O {[%emt 0:00:44]} 7. O-O {[%emt 0:00:16]} Bf5 {[%emt 0:06:06] LiveBook: 46 Games} 8. Nh4 {[%emt 0:03:27]} Be6 {[%emt 0:05:47]} 9. c5 {[%emt 0:03:28]} Bc8 {[%emt 0:03:04]} 10. f4 {[%emt 0:04:25]} b6 {[%emt 0:02:54]} 11. b4 {[%emt 0:03:31]} a5 {[%emt 0:11:05]} 12. Na4 {[%emt 0:03:57]} Nbd7 {[%emt 0:02:12]} 13. Bd2 {[%emt 0:16:49]} b5 {[%emt 0:06:49]} 14. Nb2 {[%emt 0:00:21]} Ne4 $11 {[%emt 0:10:05]} 15. Nf3 {[%emt 0:02:48]} axb4 {[%emt 0:05:37]} 16. Bxb4 {[%emt 0:06:21]} Ndxc5 {[%emt 0:02:06]} 17. Bxc5 {[%emt 0:02:58]} Nxc5 {[%emt 0:00:12]} 18. Qc2 {[%emt 0:00:02]} Ne4 {[%emt 0:03:38]} 19. Bd3 {[%emt 0:05:45]} Bf5 {[%emt 0:04:24]} 20. Nd2 {[%emt 0:10:47]} Nxd2 {[%emt 0:04:19]} 21. Qxd2 {[%emt 0:00:03]} Qd6 {[%emt 0:01:39]} 22. Bxf5 {[%emt 0:01:03]} gxf5 {[%emt 0:00:02]} 23. Nd3 {[%emt 0:00:07]} Ra3 {[%emt 0:01:35]} 24. Rac1 {[%emt 0:01:48]} Rfa8 {[%emt 0:03:15]} 25. Rc2 {[%emt 0:00:49]} R3a4 {[%emt 0:02:14]} 26. Rfc1 {[%emt 0:02:32]} Rc4 {[%emt 0:01:17]} 27. Nc5 {[%emt 0:00:26]} e6 {[%emt 0:01:57]} 28. a4 {[%emt 0:02:33]} Rxc2 {[%emt 0:05:35]} 29. Qxc2 {[%emt 0:00:09]} bxa4 {[%emt 0:00:19]} 30. Nxa4 {[%emt 0:01:35]} Qa3 {[%emt 0:01:30]} 31. Nc3 {[%emt 0:01:45]} c5 {[%emt 0:00:52]} 32. dxc5 {[%emt 0:00:17]} Qxc5 {[%emt 0:00:31]} 33. Nd1 {[%emt 0:00:06]} Qb4 {[%emt 0:01:12]} 34. Nf2 {[%emt 0:01:31]} h6 {[%emt 0:01:16]} 35. Rb1 {[%emt 0:00:59]} Qc4 {[%emt 0:01:12]} 36. Qxc4 {[%emt 0:01:05]} dxc4 {[%emt 0:00:08]} 37. Rc1 {[%emt 0:00:08]} Bb2 {[%emt 0:00:15]} 38. Rb1 {[%emt 0:00:43]} c3 {[%emt 0:03:25]} 39. Nd3 {[%emt 0:01:16]} Rd8 {[%emt 0:02:10]} 40. Nxb2 {[%emt 0:00:00]} Rb8 {[%emt 0:00:00]} 41. h3 {[%emt 0:09:00]} Kf8 {[%emt 0:03:07]} 42. g4 {[%emt 0:03:37]} Ke7 {[%emt 0:04:45]} 43. g5 {[%emt 0:00:59]} h5 {[%emt 0:01:18]} 44. Kf1 {[%emt 0:05:53]} cxb2 {[%emt 0:01:00]} 45. Ke2 {[%emt 0:03:50]} Kd6 {[%emt 0:00:22]} 46. Kd2 {[%emt 0:02:50]} Kd5 {[%emt 0:00:14]} 47. Kd3 {[%emt 0:01:18]} h4 {[%emt 0:00:28]} 48. Ke2 {[%emt 0:00:56]} Kc4 {[%emt 0:00:24]} 0-1

[Event "WYCC 2018 O16"]
[Site "Halkidiki"]
[Date "2018.10.29"]
[Round "10"]
[White "Kim, Yunseo"]
[Black "Katopodis, Dimitrios"]
[Result "0-1"]
[ECO "D52"]
[WhiteElo "1995"]
[BlackElo "2310"]
[Annotator "NA"]
[PlyCount "38"]
[EventDate "2018.10.20"]
[EventType "swiss"]
[EventCountry "GRE"]
[SourceTitle "playchess.com"]
[Source "ChessBase"]
[SourceQuality "1"]
[TimeControl "40/5400+30:1800+30"]

1. d4 {[%emt 0:00:00]} d5 {[%emt 0:00:00]} 2. c4 {[%emt 0:00:00]} e6 {[%emt 0:00:20]} 3. Nc3 {[%emt 0:00:00]} Nf6 {[%emt 0:00:44]} 4. Nf3 {[%emt 0:00:00]} c6 {[%emt 0:00:31]} 5. Bg5 {[%emt 0:00:06]} Nbd7 {[%emt 0:00:53]} 6. e3 {[%emt 0:00:07]} Be7 {[%emt 0:02:23]} 7. Bd3 {[%emt 0:00:30]} O-O {[%emt 0:01:30]} 8. O-O {[%emt 0:00:29]} b6 {[%emt 0:02:16]} 9. Qe2 {[%emt 0:06:30]} Bb7 {[%emt 0:03:58]} 10. e4 {[%emt 0:02:26]} dxc4 {[%emt 0:05:34]} 11. Bxc4 {[%emt 0:00:21]} c5 {[%emt 0:01:02]} 12. Rfd1 {[%emt 0:07:15]} cxd4 {[%emt 0:05:48]} 13. Nxd4 {[%emt 0:00:25]} Qe8 {[%emt 0:09:52]} 14. Nxe6 {[%emt 0:16:07]} fxe6 {[%emt 0:00:51]} 15. Bxe6+ {[%emt 0:00:06]} Kh8 {[%emt 0:01:06]} 16. e5 {[%emt 0:02:27]} Qg6 {[%emt 0:08:23]} 17. f4 $2 {[%emt 0:09:53]} (17. exf6 $11 {and White stays safe.} Nxf6 18. Bh3) 17... Bc5+ {[%emt 0:03:22]} 18. Kh1 $19 {[%emt 0:00:49]} Ne4 {[%emt 0:06:23]} 19. f5 {[%emt 0:09:33]} Ng3+ {[%emt 0:02:20]} 0-1

[Event "WYCC 2018 O16"]
[Site "Halkidiki"]
[Date "2018.10.29"]
[Round "10"]
[White "Lin, Kerry"]
[Black "Chukavin, Kirill"]
[Result "0-1"]
[ECO "B84"]
[WhiteElo "1931"]
[BlackElo "2274"]
[Annotator "NA"]
[PlyCount "82"]
[EventDate "2018.10.20"]
[EventType "swiss"]
[EventCountry "GRE"]
[SourceTitle "playchess.com"]
[Source "ChessBase"]
[SourceQuality "1"]
[TimeControl "40/5400+30:1800+30"]

1. e4 {[%emt 0:00:00]} c5 {[%emt 0:00:00]} 2. Nf3 {[%emt 0:00:00]} d6 {[%emt 0:00:00]} 3. d4 {[%emt 0:00:00]} cxd4 {[%emt 0:00:00]} 4. Nxd4 {[%emt 0:00:00]} Nf6 {[%emt 0:00:00]} 5. Nc3 {[%emt 0:00:03]} a6 {[%emt 0:00:00]} 6. Be2 {[%emt 0:01:47]} e6 {[%emt 0:02:59]} 7. g4 {[%emt 0:11:45]} h6 {[%emt 0:03:24]} 8. h3 {[%emt 0:02:33]} Nbd7 {[%emt 0:24:21]} 9. O-O {[%emt 0:06:58]} b5 {[%emt 0:02:04]} 10. a3 {[%emt 0:06:22]} Bb7 {[%emt 0:00:50]} 11. Bf3 {[%emt 0:02:01]} Rc8 {[%emt 0:04:33]} 12. Nde2 {[%emt 0:12:39]} Be7 {[%emt 0:06:16]} 13. Ng3 {[%emt 0:04:16]} O-O $17 {[%emt 0:01:20]} 14. Qe2 {[%emt 0:05:16]} Qc7 {[%emt 0:08:28]} 15. Bf4 {[%emt 0:05:12]} Ne5 {[%emt 0:01:47]} 16. Bg2 {[%emt 0:03:24]} Nc4 {[%emt 0:01:27]} 17. Bc1 {[%emt 0:09:48]} Rfd8 {[%emt 0:15:13]} 18. Rd1 {[%emt 0:03:24]} Nd7 {[%emt 0:00:09]} 19. Nb1 Ncb6 {[%emt 0:05:37]} 20. c3 {[%emt 0:08:48]} d5 {[%emt 0:00:07]} 21. Be3 {[%emt 0:03:59]} Nc4 {[%emt 0:02:43]} 22. exd5 {[%emt 0:06:42]} Nxe3 {[%emt 0:00:12]} 23. Qxe3 {[%emt 0:00:49]} Nf6 {[%emt 0:05:00]} 24. d6 {[%emt 0:02:05]} Bxd6 {[%emt 0:01:06]} 25. Bxb7 {[%emt 0:00:35]} Bxg3 {[%emt 0:01:16]} 26. Rxd8+ {[%emt 0:00:18]} Rxd8 {[%emt 0:00:02]} 27. Bf3 {[%emt 0:00:18]} Bh2+ {[%emt 0:07:29]} 28. Kg2 {[%emt 0:00:57]} Nd5 {[%emt 0:01:14]} 29. Bxd5 {[%emt 0:02:02]} Rxd5 {[%emt 0:00:01]} 30. a4 {[%emt 0:00:40]} Rd1 {[%emt 0:02:33]} 31. axb5 {[%emt 0:00:29]} Qb7+ {[%emt 0:01:48]} 32. Kxh2 {[%emt 0:00:57]} Rh1+ {[%emt 0:01:22]} 33. Kg3 {[%emt 0:00:03]} Rg1+ {[%emt 0:00:07]} 34. Kf4 {[%emt 0:00:54]} g5+ {[%emt 0:02:15]} 35. Ke5 {[%emt 0:00:02]} Rd1 {[%emt 0:01:12]} 36. c4 {[%emt 0:01:42]} Kg7 {[%emt 0:00:25]} 37. Nd2 {[%emt 0:01:03]} Rxa1 {[%emt 0:00:27]} 38. bxa6 {[%emt 0:00:20]} Ra5+ {[%emt 0:00:24]} 39. Kd4 {[%emt 0:00:27]} Qxb2+ {[%emt 0:00:09]} 40. Qc3 {[%emt 0:00:00]} e5+ {[%emt 0:00:00]} 41. Kd3 {[%emt 0:00:16]} Ra3 {[%emt 0:00:30] Kd4} 0-1

[Event "WYCC 2018 O16"]
[Site "Halkidiki"]
[Date "2018.10.29"]
[Round "10"]
[White "Buniatyan, David"]
[Black "De Waele, Warre"]
[Result "0-1"]
[ECO "D00"]
[WhiteElo "1795"]
[BlackElo "2272"]
[Annotator "NA"]
[PlyCount "62"]
[EventDate "2018.10.20"]
[EventType "swiss"]
[EventCountry "GRE"]
[SourceTitle "playchess.com"]
[Source "ChessBase"]
[SourceQuality "1"]
[TimeControl "40/5400+30:1800+30"]

1. d4 {[%emt 0:00:00]} d5 {[%emt 0:00:00]} 2. Bg5 {[%emt 0:00:10]} f6 {[%emt 0:01:14]} 3. Bh4 {[%emt 0:00:35]} Nh6 {[%emt 0:00:44]} 4. e3 {[%emt 0:10:27]} Nf5 {[%emt 0:00:19]} 5. Bg3 {[%emt 0:02:15] D00: Damenbauernspiele} h5 {[%emt 0:07:32]} 6. Be2 {[%emt 0:12:27]} h4 {[%emt 0:02:01]} 7. Bh5+ {[%emt 0:02:58]} Kd7 {[%emt 0:00:06]} 8. Bg4 {[%emt 0:02:39]} (8. Bf4 g5 9. e4 dxe4 10. d5 gxf4 11. Bg4 Ke8 12. Bh5+ Kd7 {0-1 (51) Bromann,T (2384)-Gretarsson,H (2567) Reykjavik 2017}) 8... e6 {[%emt 0:02:19]} 9. e4 $146 {[%emt 0:08:03]} ({Vorgänger:} 9. Bf4 g5 10. e4 dxe4 11. Bc1 c6 12. f3 exf3 13. Nxf3 {½-½ (31) Sosulin,E (2416)-Gusev,A (2423) Pervomaisky 2016}) 9... dxe4 $2 {[%emt 0:00:33]} ({Worse is} 9... Nxg3 10. hxg3 dxe4 11. d5 $11) (9... hxg3 $19 {and Black stays clearly on top.} 10. Nh3 gxf2+ 11. Nxf2 dxe4) 10. Bf4 {[%emt 0:05:34]} Ke7 {[%emt 0:03:59]} 11. Nc3 {[%emt 0:05:51]} Kf7 {[%emt 0:04:04]} 12. Nxe4 {[%emt 0:06:15]} Qxd4 {[%emt 0:02:00]} 13. Qxd4 {[%emt 0:04:18]} Nxd4 {[%emt 0:00:13]} 14. O-O-O {[%emt 0:00:14]} Ndc6 {[%emt 0:10:55]} 15. Nc3 {[%emt 0:07:20]} Na6 {[%emt 0:01:15]} 16. Bf3 {[%emt 0:06:28]} e5 {[%emt 0:00:53]} 17. Be3 {[%emt 0:02:44]} Be6 {[%emt 0:00:34]} 18. a3 {[%emt 0:02:52]} Rb8 {[%emt 0:09:40]} 19. b4 {[%emt 0:02:18]} Nd4 {[%emt 0:00:08]} 20. Bxd4 {[%emt 0:01:25]} exd4 {[%emt 0:00:08]} 21. Nb5 {[%emt 0:02:22]} c5 {[%emt 0:00:39]} 22. Ne2 {[%emt 0:00:35]} Bc4 {[%emt 0:01:44]} 23. Nxa7 {[%emt 0:02:31]} Ra8 {[%emt 0:00:10]} 24. b5 {[%emt 0:00:22]} Rxa7 $19 {[%emt 0:00:36]} 25. bxa6 {[%emt 0:00:45]} Rxa6 {[%emt 0:00:45]} 26. Kb2 {[%emt 0:01:16]} Rb6+ {[%emt 0:00:10]} 27. Kc1 {[%emt 0:00:45]} g6 {[%emt 0:00:49]} 28. Kd2 {[%emt 0:03:01]} Bh6+ {[%emt 0:00:24]} 29. Ke1 {[%emt 0:00:02]} Re8 {[%emt 0:00:10]} 30. Kf1 {[%emt 0:01:17]} Rbe6 {[%emt 0:00:06]} 31. Re1 {[%emt 0:00:22]} Bd2 {[%emt 0:00:06]} 0-1

[Event "WYCC 2018 O16"]
[Site "Halkidiki"]
[Date "2018.10.30"]
[Round "11"]
[White "Bekturov, Tamerlan"]
[Black "Baenziger, Fabian"]
[Result "0-1"]
[ECO "A58"]
[WhiteElo "2297"]
[BlackElo "2355"]
[Annotator "NA RC"]
[PlyCount "54"]
[EventDate "2018.10.20"]
[EventType "swiss"]
[EventCountry "GRE"]
[SourceTitle "playchess.com"]
[Source "ChessBase"]
[SourceQuality "1"]
[TimeControl "40/5400+30:1800+30"]

1. d4 {[%emt 0:00:00]} Nf6 {[%emt 0:00:00]} 2. c4 {[%emt 0:00:00]} c5 {[%emt 0:00:00]} 3. d5 {[%emt 0:00:00]} b5 {[%emt 0:00:05]} 4. cxb5 {[%emt 0:01:43]} a6 {[%emt 0:00:35]} 5. bxa6 {[%emt 0:02:12]} e6 {[%emt 0:00:27]} 6. Nc3 {[%emt 0:08:31] A58: Benko/Volga Gambit: Lines with 5 bxa6} exd5 {[%emt 0:00:57]} 7. Nxd5 {[%emt 0:01:02]} Nxa6 {[%emt 0:00:04]} (7... Be7 8. e3 O-O 9. Ne2 Nxd5 10. Qxd5 Rxa6 11. Nc3 Rd6 12. Qf3 Nc6 13. Be2 Bb7 {½-½ (27) Nakamura,H (2787)-Dubov,D (2701) Moscow 2018}) 8. Bg5 {[%emt 0:03:17]} Be7 {[%emt 0:00:51]} 9. Nxe7 {[%emt 0:00:57]} Qxe7 {[%emt 0:00:04]} 10. Nf3 {[%emt 0:02:09]} Rb8 {[%emt 0:00:32]} 11. b3 {[%emt 0:06:38]} h6 $146 {[%emt 0:04:04]} ({Predecessor:} 11... Rb6 12. e3 O-O 13. Be2 h6 14. Bxf6 Rxf6 {1-0 (59) Lenaerts,L (2268)-Braga,F (2418) Belgium 2015}) 12. Bf4 {[%emt 0:06:27]} Rb6 {[%emt 0:05:11]} 13. e3 {[%emt 0:01:14]} Bb7 {[%emt 0:02:56]} 14. Be2 {[%emt 0:04:34]} g5 {[%emt 0:01:53]} 15. Bg3 {[%emt 0:00:57]} Ne4 {[%emt 0:08:44]} 16. Be5 {[%emt 0:03:24]} Rg8 $1 {[%emt 0:00:24]} 17. Bb2 {[%emt 0:09:02]} Rd6 {[%emt 0:14:11]} 18. Qc1 {[%emt 0:03:45]} (18. Qb1 $14) 18... g4 {[%emt 0:00:24]} 19. Ne5 {[%emt 0:00:42]} Rd2 {[%emt 0:05:53]} 20. Nc4 {[%emt 0:03:18] [#]} Rxe2+ $1 {[%emt 0:03:24]} 21. Kxe2 {[%emt 0:00:07]} d5 {[%emt 0:00:08]} 22. Na5 {[%emt 0:03:01]} Nb4 {[%emt 0:06:54]} 23. Nxb7 {[%emt 0:00:24]} Qxb7 {[%emt 0:00:03]} 24. Rd1 {[%emt 0:00:21]} Qb5+ {[%emt 0:06:05]} 25. Ke1 {[%emt 0:01:15]} Rg5 {[%emt 0:00:44]} 26. Qb1 $19 {[%emt 0:11:07]} g3 {[%emt 0:02:24]} 27. fxg3 {[%emt 0:04:23]} Rf5 {[%emt 0:00:14]} 0-1

[Event "WYCC 2018 O16"]
[Site "Halkidiki"]
[Date "2018.10.30"]
[Round "11"]
[White "Faerber, David"]
[Black "Petkov, Matey"]
[Result "1-0"]
[ECO "C41"]
[WhiteElo "2279"]
[BlackElo "2164"]
[Annotator "NA"]
[PlyCount "81"]
[EventDate "2018.10.20"]
[EventType "swiss"]
[EventCountry "GRE"]
[SourceTitle "playchess.com"]
[Source "ChessBase"]
[SourceQuality "1"]
[TimeControl "40/5400+30:1800+30"]

1. e4 {[%emt 0:00:00]} e5 {[%emt 0:00:00]} 2. Nf3 {[%emt 0:00:00]} d6 {[%emt 0:00:00]} 3. d4 {[%emt 0:00:23]} exd4 {[%emt 0:00:02]} 4. Nxd4 {[%emt 0:00:33]} Nf6 {[%emt 0:00:06]} 5. Nc3 {[%emt 0:00:09]} Be7 {[%emt 0:00:05]} 6. Be2 {[%emt 0:00:09]} O-O {[%emt 0:00:05]} 7. Bf4 {[%emt 0:00:07] C41: Philidor Defence} Re8 {[%emt 0:01:38]} 8. Qd2 {[%emt 0:00:23]} Bf8 {[%emt 0:05:10]} 9. f3 {[%emt 0:00:10]} c6 {[%emt 0:02:19]} (9... Nc6 10. O-O-O Nxd4 11. Qxd4 Be6 12. Kb1 Nd7 13. g4 a6 14. h4 b5 {0-1 (44) Grischuk,A (2750)-Rapport,R (2698) chess.com INT 2017}) 10. O-O-O {[%emt 0:01:02]} b5 {[%emt 0:03:49]} 11. Kb1 {[%emt 0:09:28]} b4 {[%emt 0:02:23]} 12. Na4 {[%emt 0:00:14]} Bd7 {[%emt 0:00:29]} 13. b3 {[%emt 0:09:19]} d5 {[%emt 0:00:36]} 14. e5 {[%emt 0:08:27]} Nh5 $146 {[%emt 0:00:21]} ({Predecessor:} 14... c5 15. exf6 cxd4 16. fxg7 Bxg7 17. Bg5 Qc7 {½-½ (17) Koch,H (2279)-Pligin,S (2446) ICCF email 2009}) 15. Bg5 {[%emt 0:08:59]} f6 {[%emt 0:12:24]} 16. exf6 {[%emt 0:05:44]} Nxf6 {[%emt 0:00:06]} 17. f4 {[%emt 0:07:20]} c5 {[%emt 0:13:25]} (17... Ne4 $11 {remains equal.} 18. Bxd8 Nxd2+ 19. Rxd2 Rxd8) 18. Nf3 {[%emt 0:02:24]} Bxa4 {[%emt 0:01:19]} 19. Bxf6 {[%emt 0:03:19]} gxf6 {[%emt 0:00:07]} 20. bxa4 {[%emt 0:00:22]} d4 {[%emt 0:01:12]} 21. Bb5 {[%emt 0:06:44]} Nd7 {[%emt 0:00:58]} 22. Rhe1 {[%emt 0:00:32]} Rxe1 {[%emt 0:00:30]} 23. Qxe1 {[%emt 0:03:36]} Nb6 {[%emt 0:00:18]} 24. Qe6+ {[%emt 0:10:36]} Kh8 {[%emt 0:00:18]} 25. Re1 {[%emt 0:01:29]} Bg7 {[%emt 0:04:00]} 26. Bc6 {[%emt 0:04:08]} Rc8 {[%emt 0:02:31]} 27. a5 {[%emt 0:01:36]} Nc4 {[%emt 0:01:51]} 28. Qxc4 {[%emt 0:02:27]} Rxc6 {[%emt 0:00:02]} 29. Qf7 {[%emt 0:00:55]} Rc8 {[%emt 0:00:07]} 30. Re7 {[%emt 0:02:58]} Qg8 {[%emt 0:01:59]} 31. a6 {[%emt 0:01:39]} Ra8 {[%emt 0:06:42]} 32. Nd2 {[%emt 0:01:59]} Qxf7 {[%emt 0:01:09]} 33. Rxf7 {[%emt 0:00:02]} Kg8 {[%emt 0:00:47]} 34. Rc7 {[%emt 0:00:16]} f5 {[%emt 0:00:29]} 35. Rxc5 {[%emt 0:03:01]} Re8 {[%emt 0:00:10]} 36. Nf3 {[%emt 0:00:30]} Re6 {[%emt 0:03:20]} 37. Rc8+ {[%emt 0:00:49]} Bf8 {[%emt 0:00:05]} 38. Ne5 {[%emt 0:00:23]} Kg7 {[%emt 0:00:35]} 39. Rc7+ {[%emt 0:00:27]} Re7 {[%emt 0:00:14]} 40. Rxe7+ {[%emt 0:00:00]} Bxe7 {[%emt 0:00:00]} 41. Nc6 $18 {[%emt 0:00:58]} 1-0

[Event "WYCC 2018 O16"]
[Site "Halkidiki"]
[Date "2018.10.30"]
[Round "11"]
[White "Talukdar, Rohan"]
[Black "Filgueiras, Nathan Felipe"]
[Result "1-0"]
[ECO "C55"]
[WhiteElo "2279"]
[BlackElo "2188"]
[Annotator "ChessBase"]
[PlyCount "137"]
[EventDate "2018.10.20"]
[EventType "swiss"]
[EventCountry "GRE"]
[SourceTitle "playchess.com"]
[Source "ChessBase"]
[SourceQuality "1"]
[TimeControl "40/5400+30:1800+30"]

1. e4 {[%emt 0:00:00]} e5 {[%emt 0:00:00]} 2. Nf3 {[%emt 0:00:00]} Nc6 {[%emt 0:00:00]} 3. Bc4 {[%emt 0:00:21]} Nf6 {[%emt 0:00:00]} 4. d3 {[%emt 0:00:07]} Be7 {[%emt 0:00:00]} 5. O-O {[%emt 0:01:12]} O-O {[%emt 0:00:28]} 6. Bb3 {[%emt 0:00:48]} d6 {[%emt 0:00:27]} 7. c3 {[%emt 0:00:04]} Kh8 {[%emt 0:00:44]} 8. Nbd2 {[%emt 0:04:22]} Ng8 {[%emt 0:01:13]} 9. d4 {[%emt 0:05:20]} Bg4 {[%emt 0:01:29]} 10. h3 {[%emt 0:08:40]} Bh5 {[%emt 0:01:02]} 11. d5 {[%emt 0:02:34]} Nb8 {[%emt 0:01:36]} 12. Bc2 {[%emt 0:04:02]} Bg6 {[%emt 0:08:15]} 13. Re1 {[%emt 0:06:54]} c6 {[%emt 0:11:08]} 14. c4 {[%emt 0:00:22]} Nd7 {[%emt 0:05:04]} 15. Nf1 {[%emt 0:02:31]} Ngf6 {[%emt 0:15:52]} 16. Ng3 {[%emt 0:10:51]} a5 {[%emt 0:11:26]} 17. Be3 {[%emt 0:07:13]} cxd5 {[%emt 0:04:18]} 18. cxd5 {[%emt 0:02:29]} Rc8 {[%emt 0:00:29]} 19. Rc1 {[%emt 0:04:27]} Nc5 {[%emt 0:01:44]} 20. Nd2 {[%emt 0:01:27]} Nfd7 {[%emt 0:10:38]} 21. a3 {[%emt 0:12:47]} b5 {[%emt 0:03:13]} 22. b4 {[%emt 0:04:09]} axb4 {[%emt 0:01:35]} 23. axb4 {[%emt 0:00:01]} Na6 {[%emt 0:01:08]} 24. Rb1 {[%emt 0:00:06]} Nb6 {[%emt 0:03:20]} 25. Bd3 {[%emt 0:00:56]} Nc4 {[%emt 0:05:56]} 26. Qe2 {[%emt 0:04:33]} Nxe3 {[%emt 0:01:44]} 27. Qxe3 {[%emt 0:00:01]} Rb8 {[%emt 0:06:03]} 28. Rec1 {[%emt 0:03:12]} Bg5 {[%emt 0:01:27]} 29. Qe2 {[%emt 0:00:07]} Rb6 {[%emt 0:01:28]} 30. Rc2 {[%emt 0:03:19]} Qd7 {[%emt 0:00:22]} 31. Ra2 {[%emt 0:00:16]} Qb7 {[%emt 0:02:15]} 32. Raa1 {[%emt 0:06:02]} Bxd2 {[%emt 0:00:42]} 33. Qxd2 {[%emt 0:00:02]} Rc8 {[%emt 0:00:19]} 34. Ra5 {[%emt 0:00:49]} f6 {[%emt 0:00:17]} 35. Ne2 {[%emt 0:00:41]} Be8 {[%emt 0:00:16]} 36. f4 {[%emt 0:01:19]} Kg8 {[%emt 0:01:09]} 37. Rf1 {[%emt 0:00:37]} Qe7 {[%emt 0:00:35]} 38. Rfa1 {[%emt 0:00:46]} Nb8 {[%emt 0:00:33]} 39. f5 {[%emt 0:01:40]} Qc7 {[%emt 0:00:20]} 40. Qe3 {[%emt 0:00:00]} Rb7 {[%emt 0:00:00]} 41. Ra7 {[%emt 0:06:03]} Nd7 {[%emt 0:10:36]} 42. Bxb5 {[%emt 0:05:02]} Rxa7 {[%emt 0:02:49]} 43. Rxa7 {[%emt 0:02:37]} Qb6 {[%emt 0:00:07]} 44. Qxb6 {[%emt 0:00:31]} Nxb6 {[%emt 0:00:02]} 45. Ba6 {[%emt 0:04:48]} Rc2 {[%emt 0:04:04]} 46. Rb7 {[%emt 0:00:09]} Na4 {[%emt 0:02:35]} 47. Kf1 {[%emt 0:01:09]} Kf8 {[%emt 0:05:05]} 48. Rb8 {[%emt 0:01:31]} Ke7 {[%emt 0:01:25]} 49. Rb7+ {[%emt 0:00:04]} Kf8 {[%emt 0:00:13]} 50. Ke1 {[%emt 0:00:12]} h5 {[%emt 0:03:13]} 51. Kd1 {[%emt 0:04:44]} Ra2 {[%emt 0:00:10]} 52. Rb8 {[%emt 0:03:17]} Ke7 {[%emt 0:02:31]} 53. Kc1 {[%emt 0:01:29]} h4 {[%emt 0:01:02]} 54. Bd3 {[%emt 0:02:15]} Bh5 {[%emt 0:01:42]} 55. Rb7+ {[%emt 0:01:00]} Kf8 {[%emt 0:00:35]} 56. Rb8+ {[%emt 0:01:15]} Ke7 {[%emt 0:00:12]} 57. Rb7+ {[%emt 0:00:07]} Kf8 {[%emt 0:00:02]} 58. Bc4 {[%emt 0:01:16]} Rxe2 {[%emt 0:03:15]} 59. Bxe2 {[%emt 0:00:01]} Bxe2 {[%emt 0:00:02]} 60. Kc2 {[%emt 0:00:01]} Bf1 {[%emt 0:00:24]} 61. Kb3 {[%emt 0:00:14]} Nc5+ {[%emt 0:00:03]} 62. bxc5 {[%emt 0:00:10]} dxc5 {[%emt 0:00:04]} 63. d6 {[%emt 0:00:27]} Ke8 {[%emt 0:01:19]} 64. Rxg7 {[%emt 0:00:25]} Bd3 {[%emt 0:00:18]} 65. Rg4 {[%emt 0:00:11]} Kd7 {[%emt 0:00:24]} 66. Rxh4 {[%emt 0:00:12]} Kxd6 {[%emt 0:00:02]} 67. Kc3 {[%emt 0:00:13]} Bf1 {[%emt 0:00:26]} 68. Rg4 {[%emt 0:00:15]} Be2 {[%emt 0:00:41]} 69. Rg7 {[%emt 0:00:11] Kd5} 1-0

[Event "WYCC 2018 O16"]
[Site "Halkidiki"]
[Date "2018.10.30"]
[Round "11"]
[White "Nielsen, Andre"]
[Black "Araoz Andrade, Ivan Alexander"]
[Result "1-0"]
[ECO "B90"]
[WhiteElo "2260"]
[BlackElo "1919"]
[Annotator "NA"]
[PlyCount "45"]
[EventDate "2018.10.20"]
[EventType "swiss"]
[EventCountry "GRE"]
[SourceTitle "playchess.com"]
[Source "ChessBase"]
[SourceQuality "1"]
[TimeControl "40/5400+30:1800+30"]

1. e4 {[%emt 0:00:00]} c5 {[%emt 0:00:00]} 2. Nf3 {[%emt 0:00:00]} d6 {[%emt 0:00:00]} 3. d4 {[%emt 0:00:11]} cxd4 {[%emt 0:00:00]} 4. Nxd4 {[%emt 0:00:17]} Nf6 {[%emt 0:00:00]} 5. Nc3 {[%emt 0:00:13]} a6 {[%emt 0:00:00]} 6. Bc4 {[%emt 0:00:57]} e6 {[%emt 0:00:05]} 7. Bb3 {[%emt 0:00:09]} Nbd7 {[%emt 0:00:34]} 8. f4 {[%emt 0:01:00]} Nc5 {[%emt 0:00:48]} 9. f5 {[%emt 0:00:18]} Be7 {[%emt 0:00:47]} 10. Qf3 {[%emt 0:01:07]} Nxb3 {[%emt 0:10:44]} 11. axb3 {[%emt 0:02:52]} O-O {[%emt 0:00:23]} 12. Be3 {[%emt 0:04:43]} Kh8 $146 {[%emt 0:06:46] B86: Sicilian Scheveningen/Najdorf: 6 Bc4, without early ...b5} ({Predecessor:} 12... Nd7 13. O-O-O Ne5 14. Qe2 Bd7 15. g4 b5 16. Kb1 Re8 17. Rhg1 b4 18. Na4 Qa5 19. g5 Bxa4 20. bxa4 Qxa4 {1-0 (71) Balzar,A (2352)-Heinemann,T (2453) Germany 2005}) 13. g4 {[%emt 0:08:15]} Nd7 {[%emt 0:04:34]} 14. O-O-O {[%emt 0:01:50]} Ne5 {[%emt 0:01:37]} 15. Qf4 {[%emt 0:07:31]} Qa5 {[%emt 0:06:00]} 16. g5 {[%emt 0:07:25]} Bd7 {[%emt 0:01:50]} (16... f6 $1 $14) 17. Kb1 {[%emt 0:08:06]} Rac8 {[%emt 0:05:06]} 18. Rhg1 {[%emt 0:03:36]} Qb4 {[%emt 0:27:40]} 19. Rg3 {[%emt 0:04:36]} Nc4 {[%emt 0:05:00]} 20. bxc4 {[%emt 0:03:18]} e5 {[%emt 0:00:34]} 21. Qh4 {[%emt 0:00:17]} exd4 {[%emt 0:01:28]} 22. Nd5 {[%emt 0:00:25]} Qxc4 {[%emt 0:00:45] [#]} 23. Qxh7+ {[%emt 0:00:20]} 1-0